lending/lending_fUSD_20260330
["ID","MTS","AMOUNT","RATE_DAILY","PERIOD"]
[419123108,1774903891051,-1781.97,0.00046684,120]
[419123109,1774903891117,-1781.97,0.00046684,120]
[419123110,1774903891181,-1781.97,0.00046684,120]
[419123111,1774903891244,-1781.97,0.00046684,120]
[419123112,1774903891311,-1781.97,0.00046684,120]
[419123113,1774903891376,-1781.97,0.00046684,120]
[419123114,1774903891441,-1781.97,0.00046684,120]
[419123115,1774903891507,-1781.97,0.00046684,120]
[419123116,1774903891574,-1781.97,0.00046684,120]
[419123117,1774903891639,-1781.97,0.00046684,120]
[419123118,1774903891704,-1781.97,0.00046684,120]
[419123119,1774903891769,-1781.97,0.00046684,120]
[419123120,1774903891836,-1781.97,0.00046684,120]
[419123121,1774903891902,-1781.97,0.00046684,120]
[419123122,1774903891966,-1781.97,0.00046684,120]
[419123123,1774903892028,-1781.97,0.00046684,120]
[419123124,1774903892090,-1781.97,0.00046684,120]
[419123125,1774903892152,-1781.97,0.00046684,120]
[419123126,1774903892218,-1781.97,0.00046684,120]
[419123127,1774903892287,-1781.97,0.00046684,120]
[419123128,1774903892354,-1781.97,0.00046684,120]
[419123129,1774903892421,-1782.16972477,0.00046684,120]
[419123130,1774903892489,-3000.0,0.00046684,30]
[419123131,1774903892557,-3000.0,0.00046684,30]
[419123132,1774903892624,-3000.0,0.00046684,30]
[419123133,1774903892691,-648.81925162,0.00046684,120]
[419123134,1774903892757,-1000.0,0.00046684,30]
[419123135,1774903892821,-1000.0,0.00046684,30]
[419123136,1774903892886,-1000.0,0.00046684,30]
[419123137,1774903892950,-43766.990314,0.00046684,120]
[419123138,1774903893016,-2162.27098823,0.00046684,90]
[419123139,1774903893082,-2142.62050603,0.00046684,30]
[419123140,1774903893147,-310.08029475,0.00046684,91]
[419123141,1774903893213,-3764.75732152,0.00046684,60]
[419123142,1774903893282,-1209.87916658,0.00046684,30]
[419123143,1774903893352,-3569.50198129,0.00046684,30]
[419123144,1774903893420,-2251.69712631,0.00046684,30]
[419123145,1774903893484,-3115.14881879,0.00046684,60]
[419123146,1774903893554,-500.0,0.00046684,120]
[419123147,1774903893622,-500.0,0.00046684,120]
[419123148,1774903893691,-500.0,0.00046684,120]
[419123149,1774903893760,-500.0,0.00046684,120]
[419123150,1774903893826,-500.0,0.00046684,120]
[419123151,1774903893895,-500.0,0.00046684,120]
[419123152,1774903893965,-500.0,0.00046684,120]
[419123153,1774903894034,-500.0,0.00046684,120]
[419123154,1774903894104,-500.0,0.00046684,120]
[419123155,1774903894150,-500.0,0.00046684,120]
[419123156,1774903894196,-500.0,0.00046684,120]
[419123157,1774903894243,-500.0,0.00046684,120]
[419123158,1774903894290,-500.0,0.00046684,120]
[419123159,1774903894336,-500.0,0.00046684,120]
[419123160,1774903894382,-500.0,0.00046684,120]
[419123161,1774903894428,-500.0,0.00046684,120]
[419123162,1774903894476,-500.0,0.00046684,120]
[419123163,1774903894522,-2005.86633201,0.00046684,30]
[419123164,1774903894570,-100000.0,0.00046684,120]
[419123165,1774903894616,-1278.98958398,0.00046684,120]
[419123166,1774903894662,-4771.43615314,0.00046684,30]
[419123167,1774903894707,-3234.53187189,0.00046684,30]
[419123168,1774903894750,-3005.53707325,0.00046684,30]
[419123169,1774903894793,-81040.0,0.00046684,120]
[419123170,1774903894836,-2956650.96331553,0.00046684,120]
[419123171,1774903937190,503.37,7.861e-05,2]
[419123172,1774903943099,150.0,8.49e-05,2]
[419123173,1774903943439,230.0,7.861e-05,2]
[419123174,1774903945552,150.0,8.49e-05,2]
[419123175,1774903945662,150.0,8.49e-05,2]
[419123176,1774903946065,-391.46,8.905e-05,2]
[419123177,1774903946075,-150.0,9.215e-05,2]
[419123178,1774903946083,-671.98,9.293e-05,2]
[419123179,1774903946092,-809.08,9.5e-05,2]
[419123180,1774903946101,-16.90051899,0.00010557,2]
[419123181,1774903946112,-483.09948101,0.00010557,2]
[419123182,1774903946121,-250.0,0.00011105,2]
[419123183,1774903946130,-379.15,0.00011274,2]
[419123184,1774903946140,-5379.4,0.00011346,2]
[419123185,1774903946149,-200.0,0.00011368,2]
[419123186,1774903946158,-1214.61,0.00011507,2]
[419123187,1774903946167,-185.37,0.00011577,2]
[419123188,1774903946176,-1852.42,0.00012351,2]
[419123189,1774903946186,-163.02,0.00012415,2]
[419123190,1774903946196,-5064.48,0.00012467,2]
[419123191,1774903946204,-84430.15275787,0.00012593,2]
[419123192,1774903946216,-577.69225892,0.00012593,2]
[419123193,1774903946228,-428.38567735,0.00012593,2]
[419123194,1774903946239,-322.59321388,0.00012593,2]
[419123195,1774903946250,-3625.58942686,0.00012593,2]
[419123196,1774903946260,-962.2465949,0.00012593,2]
[419123197,1774903946273,-462.11065713,0.00012593,2]
[419123198,1774903946283,-10534.31893508,0.00012593,2]
[419123199,1774903946294,-16326.2226492,0.00012593,2]
[419123200,1774903946306,-1432.6153019,0.00012593,2]
[419123201,1774903947789,-161176.22692506,0.00012593,2]
[419123202,1774903947821,-872.62163495,0.00012593,2]
[419123203,1774903948050,-68215.95453606,0.00012593,2]
[419123204,1774903948100,-2926.54379763,0.00012593,2]
[419123206,1774903948550,-430.4257349,0.00012593,2]
[419123207,1774903948566,-502.76721983,0.00012593,2]
[419123208,1774903948578,-23308.6696544,0.00012593,2]
[419123209,1774903948595,-557.94431981,0.00012593,2]
[419123210,1774903948821,-749.8607074,0.00012593,2]
[419123211,1774903948841,-114781.40679687,0.00012593,2]
[419123212,1774903948851,-150.0,0.00012674,2]
[419123213,1774903948862,-2750.6,0.00012693,2]
[419123214,1774903948872,-2750.6,0.00012693,2]
[419123215,1774903948882,-2750.6,0.00012693,2]
[419123216,1774903948891,-2750.6,0.00012693,2]
[419123217,1774903948901,-8493.94,0.000127,2]
[419123219,1774903948912,-1500.0,0.00013,7]
[419123220,1774903948921,-11404.2542,0.00013,2]
[419123221,1774903948931,-250.0,0.00013,2]
[419123222,1774903948941,-4148.4413,0.00013,2]
[419123223,1774903948950,-206.34292365,0.00013001,2]
[419123224,1774903948960,-834.48670674,0.00013001,2]
[419123225,1774903948970,-10923.0231,0.00013101,2]
[419123226,1774903948980,-500.0,0.00013186,2]
[419123227,1774903948990,-500.0,0.000132,2]
[419123228,1774903948999,-500.0,0.000132,2]
[419123229,1774903949009,-500.0,0.000132,2]
[419123230,1774903949018,-248.0,0.000132,2]
[419123231,1774903949028,-913.9391668,0.00013201,2]
[419123232,1774903949038,-230.5243413,0.00013201,2]
[419123233,1774903949048,-1111.2284851,0.00013201,2]
[419123234,1774903949058,-200.0,0.00013201,2]
[419123235,1774903949068,-11832.7415219,0.00013201,2]
[419123236,1774903949078,-200.0,0.00013201,2]
[419123237,1774903949089,-1600.0,0.00013263,2]
[419123238,1774903949099,-503.13114295,0.00013288,2]
[419123239,1774903949108,-500.36278592,0.00013288,2]
[419123240,1774903949118,-200.0,0.00013333,2]
[419123241,1774903949130,-200.0,0.00013333,2]
[419123242,1774903949139,-16692.65,0.00013368,2]
[419123243,1774903949149,-200.0,0.00013466,2]
[419123244,1774903949159,-200.0,0.00013466,2]
[419123245,1774903949169,-2500.0,0.00013531,2]
[419123246,1774903949179,-200.0,0.00013601,2]
[419123247,1774903949188,-200.0,0.00013601,2]
[419123248,1774903949199,-150.0,0.00013699,2]
[419123249,1774903949210,-184.64,0.00013699,2]
[419123250,1774903949219,-1000.67594574,0.00013734,2]
[419123251,1774903949229,-200.0,0.00013737,2]
[419123252,1774903949239,-200.0,0.00013737,2]
[419123253,1774903949249,-160.32832829,0.00013889,2]
[419123254,1774903949258,-2000.0,0.00013989,2]
[419123255,1774903949268,-163.02,0.00014484,2]
[419123256,1774903949277,-200.0,0.00014536,2]
[419123257,1774903949287,-1600.0,0.00014737,2]
[419123258,1774903949296,-913.9391668,0.00014781,2]
[419123259,1774903949306,-11832.7415219,0.00014835,2]
[419123260,1774903949316,-230.5243413,0.0001486,2]
[419123261,1774903949326,-160.0,0.00014868,2]
[419123262,1774903949336,-160.0,0.00014868,2]
[419123263,1774903949345,-160.0,0.00014868,2]
[419123264,1774903949355,-1111.2284851,0.00014885,2]
[419123265,1774903949364,-1045.0,0.00014889,2]
[419123266,1774903949375,-1346.0,0.00014889,2]
[419123267,1774903949385,-621.0,0.00014889,2]
[419123268,1774903949395,-3518.0,0.00014889,2]
[419123269,1774903949404,-1052.0,0.00014889,2]
[419123270,1774903949414,-3766.0,0.00014889,2]
[419123271,1774903949425,-161.0,0.00014983,2]
[419123272,1774903949435,-200.85185269,0.00014992,2]
[419123273,1774903949445,-300.0,0.00015,2]
[419123274,1774903949455,-161.0,0.0001504,2]
[419123275,1774903949465,-395.06,0.00015237,2]
[419123276,1774903949474,-1000.0,0.00015238,2]
[419123277,1774903949484,-1207.23115265,0.00015299,5]
[419123278,1774903949494,-161.0,0.00015303,2]
[419123279,1774903949503,-14041.88,0.0001531,2]
[419123280,1774903949512,-7839.26,0.0001531,2]
[419123281,1774903949522,-3318.94,0.0001531,2]
[419123282,1774903949531,-498.98883986,0.00015328,2]
[419123283,1774903949540,-2000.0,0.00015387,2]
[419123284,1774903949550,-2808.0,0.00015478,2]
[419123285,1774903949559,-4000.0,0.00015507,2]
[419123286,1774903949569,-1571.0,0.00015513,2]
[419123287,1774903949578,-161.0,0.00015623,2]
[419123288,1774903949588,-161.0,0.0001568,2]
[419123289,1774903949598,-5888.0,0.00015758,2]
[419123290,1774903949609,-1337.139,0.00015789,2]
[419123291,1774903949619,-205.564,0.00015789,2]
[419123292,1774903949628,-513.89069034,0.000158,2]
[419123293,1774903949638,-5888.0,0.0001585,2]
[419123294,1774903949647,-500.0,0.0001589,2]
[419123295,1774903949656,-500.0,0.0001589,2]
[419123296,1774903949666,-500.0,0.0001589,2]
[419123297,1774903949675,-500.0,0.0001589,2]
[419123298,1774903949685,-500.0,0.0001589,2]
[419123299,1774903949694,-500.0,0.0001589,2]
[419123300,1774903949703,-500.0,0.0001589,2]
[419123301,1774903949712,-500.0,0.0001589,2]
[419123302,1774903949722,-500.0,0.0001589,2]
[419123303,1774903949732,-500.0,0.0001589,2]
[419123304,1774903949741,-200.0,0.00015893,2]
[419123305,1774903949751,-4000.0,0.00015895,2]
[419123306,1774903949760,-168.0,0.00015912,2]
[419123307,1774903949770,-5888.0,0.00015962,2]
[419123308,1774903949779,-400.0,0.00015999,2]
[419123309,1774903949788,-5888.0,0.00016048,2]
[419123310,1774903949797,-2188.7880711,0.00016109,2]
[419123311,1774903949807,-234.45,0.00016163,2]
[419123312,1774903949816,-5888.0,0.00016199,2]
[419123313,1774903949825,-1600.0,0.00016211,2]
[419123314,1774903949835,-4000.0,0.00016282,2]
[419123315,1774903949844,-5888.0,0.00016313,2]
[419123316,1774903949854,-913.9391668,0.00016361,2]
[419123317,1774903949863,-5888.0,0.00016424,2]
[419123318,1774903949873,-500.0,0.00016437,2]
[419123319,1774903949883,-200.0,0.00016438,2]
[419123320,1774903949893,-200.0000009,0.00016438,2]
[419123321,1774903949903,-902.81,0.00016438,2]
[419123322,1774903949912,-250.0,0.00016438,2]
[419123323,1774903949922,-228.99,0.00016438,2]
[419123324,1774903949931,-2511.79,0.00016438,2]
[419123325,1774903949940,-152.0,0.00016438,2]
[419123326,1774903949949,-152.0,0.00016438,2]
[419123327,1774903949959,-152.0,0.00016438,2]
[419123328,1774903949968,-152.0,0.00016438,2]
[419123329,1774903949978,-168.0,0.00016443,2]
[419123330,1774903949987,-264.0,0.00016448,2]
[419123331,1774903949996,-11832.7415219,0.00016469,2]
[419123332,1774903950006,-233.51889341,0.00016506,2]
[419123333,1774903950015,-5888.0,0.00016516,2]
[419123334,1774903950025,-230.5243413,0.00016518,2]
[419123335,1774903950034,-5888.0,0.00016529,2]
[419123336,1774903950043,-163.02,0.00016553,2]
[419123337,1774903950053,-1111.2284851,0.00016568,2]
[419123338,1774903950062,-601.56774597,0.0001657,2]
[419123339,1774903950072,-161.0,0.0001658,2]
[419123340,1774903950082,-363.3593505,0.000166,2]
[419123341,1774903950091,-5888.0,0.00016603,2]
[419123342,1774903950101,-395.06,0.00016606,2]
[419123343,1774903950110,-264.0,0.00016612,2]
[419123344,1774903950119,-163.26,0.0001664,2]
[419123345,1774903950129,-2579.2,0.00016667,2]
[419123346,1774903950139,-4000.0,0.0001667,2]
[419123347,1774903950148,-264.0,0.00016673,2]
[419123348,1774903950158,-300.0,0.00016686,2]
[419123349,1774903950167,-3144.4,0.00016712,2]
[419123350,1774903950176,-233.76,0.00016712,2]
[419123351,1774903950186,-5888.0,0.00016714,2]
[419123352,1774903950195,-500.0,0.00016726,2]
[419123353,1774903950204,-500.0,0.00016726,2]
[419123354,1774903950213,-500.0,0.00016726,2]
[419123355,1774903950223,-316.57356332,0.00016726,2]
[419123356,1774903950232,-5888.0,0.00016778,2]
[419123357,1774903950242,-5888.0,0.00016781,2]
[419123358,1774903950251,-2000.0,0.00016786,2]
[419123359,1774903950260,-264.0,0.00016802,2]
[419123360,1774903950269,-5000.0,0.00016831,2]
[419123361,1774903950279,-264.0,0.00016849,2]
[419123362,1774903950288,-264.0,0.0001685,2]
[419123363,1774903950297,-220.13859536,0.000169,2]
[419123364,1774903950306,-238.10434165,0.000169,2]
[419123365,1774903950316,-5519.74249108,0.000169,2]
[419123366,1774903950326,-662.29,0.00016906,2]
[419123367,1774903950335,-500.0,0.00016906,2]
[419123368,1774903950344,-771.17,0.00016906,2]
[419123369,1774903950353,-9999.99,0.00016922,2]
[419123370,1774903950363,-1266.38,0.00016922,2]
[419123371,1774903950372,-9972.69,0.00016922,2]
[419123372,1774903950382,-581.81,0.00016922,2]
[419123373,1774903950391,-9999.99,0.00016922,2]
[419123374,1774903950401,-150.99,0.00016922,2]
[419123375,1774903950410,-123384.5,0.00016922,2]
[419123376,1774903950419,-999.99,0.00016922,2]
[419123377,1774903950429,-6648.04,0.00016922,2]
[419123378,1774903950438,-3853.26,0.00016922,2]
[419123379,1774903950447,-150.99,0.00016922,2]
[419123380,1774903950457,-1480.17,0.00016922,2]
[419123381,1774903950467,-2997.83,0.00016922,2]
[419123382,1774903950477,-22928.64,0.00016922,2]
[419123383,1774903950486,-9999.99,0.00016922,2]
[419123384,1774903950495,-9999.99,0.00016922,2]
[419123385,1774903950504,-1040.37,0.00016931,2]
[419123386,1774903950514,-587.16,0.00016931,2]
[419123387,1774903950523,-1741.5,0.00016931,2]
[419123388,1774903950532,-534.54,0.00016931,2]
[419123389,1774903950542,-662.29,0.00016959,2]
[419123390,1774903950551,-662.29,0.00016959,2]
[419123391,1774903950560,-662.29,0.00016959,2]
[419123392,1774903950570,-662.29,0.00016959,2]
[419123393,1774903950579,-662.33409801,0.00016959,2]
[419123394,1774903950589,-500.0,0.00016959,2]
[419123395,1774903950598,-500.0,0.00016959,2]
[419123396,1774903950981,-500.0,0.00016959,2]
[419123397,1774903950992,-330.76422672,0.00016959,2]
[419123398,1774903951002,-771.17,0.00016959,2]
[419123399,1774903951012,-771.17,0.00016959,2]
[419123401,1774903951021,-771.17,0.00016959,2]
[419123402,1774903951031,-771.17,0.00016959,2]
[419123403,1774903951040,-771.23,0.00016959,2]
[419123404,1774903951049,-500.0,0.00016959,2]
[419123405,1774903951058,-500.0,0.00016959,2]
[419123406,1774903951067,-500.0,0.00016959,2]
[419123407,1774903951076,-293.02,0.00016959,2]
[419123408,1774903951086,-590.46,0.00016959,2]
[419123409,1774903951095,-590.46,0.00016959,2]
[419123410,1774903951104,-590.46,0.00016959,2]
[419123411,1774903951113,-590.46,0.00016959,2]
[419123412,1774903951122,-590.58,0.00016959,2]
[419123413,1774903951132,-528.41,0.00016959,2]
[419123414,1774903951143,-528.41,0.00016959,2]
[419123415,1774903951152,-528.41,0.00016959,2]
[419123416,1774903951162,-528.41,0.00016959,2]
[419123417,1774903951172,-528.41101881,0.00016959,2]
[419123418,1774903951181,-517.55,0.00016959,2]
[419123419,1774903951191,-517.55,0.00016959,2]
[419123420,1774903951201,-517.55,0.00016959,2]
[419123421,1774903951211,-517.55,0.00016959,2]
[419123422,1774903951222,-517.57,0.00016959,2]
[419123423,1774903951232,-573.16,0.00016959,2]
[419123424,1774903951242,-573.16,0.00016959,2]
[419123425,1774903951253,-835.43,0.00016959,2]
[419123426,1774903951262,-573.16,0.00016959,2]
[419123427,1774903951273,-835.43,0.00016959,2]
[419123428,1774903951282,-573.16,0.00016959,2]
[419123429,1774903951292,-835.43,0.00016959,2]
[419123430,1774903951301,-573.27300511,0.00016959,2]
[419123431,1774903951310,-835.43,0.00016959,2]
[419123432,1774903951320,-835.55,0.00016959,2]
[419123433,1774903951329,-400.0,0.0001697,2]
[419123434,1774903951338,-221.78565646,0.00016973,2]
[419123435,1774903951348,-248.81003881,0.00016973,2]
[419123436,1774903951357,-3144.4,0.00016986,2]
[419123437,1774903951367,-240.70923313,0.0001699,2]
[419123438,1774903951376,-1571.0,0.00016997,2]
[419123439,1774903951386,-500.0,0.00016999,2]
[419123440,1774903951395,-500.0,0.00016999,2]
[419123441,1774903951404,-500.0,0.00016999,2]
[419123442,1774903951414,-500.0,0.00016999,2]
[419123443,1774903951423,-500.0,0.00016999,2]
[419123444,1774903951434,-500.0,0.00016999,2]
[419123445,1774903951443,-300.0,0.00016999,2]
[419123446,1774903951452,-359069.10101474,0.00017,2]
[419123447,1774903951461,-660691.06380833,0.00017,2]
[419123448,1774903951476,-705.39411627,0.00017,2]
[419123449,1774903951500,-25941.08788667,0.00017,2]
[419123451,1774903951662,-676.87939562,0.00017,2]
[419123452,1774903951677,-685.08420063,0.00017,2]
[419123453,1774903951697,-1986.11843336,0.00017,2]
[419123454,1774903951709,-154259.4400573,0.00017,2]
[419123455,1774903951721,-7588.08125855,0.00017,2]
[419123456,1774903951735,-1422.57808473,0.00017,2]
[419123457,1774903951750,-8722.10794017,0.00017,2]
[419123466,1774903961374,1010.0,6.735e-05,2]
[419123467,1774903961547,747.25,7.279e-05,2]
[419123468,1774903961753,411.12,7.936e-05,2]
[419123469,1774903964259,229.15,5.294e-05,2]
[419123470,1774903964392,229.15,5.572e-05,2]
[419123471,1774903964528,229.15,5.851e-05,2]
[419123472,1774903964692,229.15,6.129e-05,2]
[419123473,1774903964788,229.15,6.408e-05,2]
[419123474,1774903964877,229.15,6.687e-05,2]
[419123475,1774903964962,229.15,6.965e-05,2]
[419123476,1774903965083,229.15,7.244e-05,2]
[419123477,1774903965151,229.15,7.522e-05,2]
[419123478,1774903965559,229.15,7.801e-05,2]
[419123479,1774903965660,229.15,8.08e-05,2]
[419123480,1774903965739,229.15,8.358e-05,2]
[419123481,1774903966853,250.0,8.302e-05,2]
[419123482,1774903967808,371.0,7.992e-05,2]
[419123485,1774903983521,150.0,7.274e-05,2]
[419123486,1774904000883,343.55,5.961e-05,2]
[419123487,1774904123927,741.15,5.58e-05,2]
[419123488,1774904368321,509.54,5.434e-05,2]
[419123497,1774904836122,-1200.0,8.636e-05,2]
[419123498,1774904836143,-300.0,8.636e-05,2]
[419123499,1774904836164,-300.0,8.636e-05,2]
[419123500,1774904836185,-250.0,8.636e-05,2]
[419123501,1774904836206,-150.0,8.636e-05,2]
[419123502,1774904836227,-5000.0,8.636e-05,2]
[419123503,1774904836248,-250.0,8.637e-05,2]
[419123504,1774904836269,-150.0,8.637e-05,2]
[419123505,1774904836290,-150.0,8.637e-05,2]
[419123506,1774904836310,-150.0,8.637e-05,2]
[419123507,1774904836331,-229.15,8.637e-05,2]
[419123508,1774904836351,-305.794966,8.637e-05,2]
[419123509,1774904836373,-5000.0,8.637e-05,2]
[419123510,1774904836394,-240.0,8.637e-05,2]
[419123511,1774904836414,-282.99073535,8.637e-05,2]
[419123512,1774904836435,-150.0,8.639e-05,2]
[419123513,1774904836455,-150.0,8.646e-05,2]
[419123514,1774904836475,-150.47758697,8.646e-05,2]
[419123515,1774904836495,-163.27,8.654e-05,2]
[419123516,1774904836516,-229.15,8.915e-05,2]
[419123517,1774904836538,-390.3152,9.115e-05,2]
[419123518,1774904836560,-229.15,9.194e-05,2]
[419123519,1774904836581,-150.0,9.328e-05,2]
[419123520,1774904836601,-150.0,9.328e-05,2]
[419123521,1774904836621,-150.0,9.4e-05,2]
[419123522,1774904836643,-229.15,9.473e-05,2]
[419123523,1774904836663,-420.0,9.499e-05,2]
[419123524,1774904836684,-420.0,9.499e-05,2]
[419123525,1774904836705,-5000.0,9.5e-05,2]
[419123526,1774904836726,-250.0,9.5e-05,2]
[419123527,1774904836746,-5000.0,9.5e-05,2]
[419123528,1774904836766,-1680.0,9.5e-05,2]
[419123529,1774904836788,-5000.0,9.501e-05,2]
[419123530,1774904836808,-170.0,9.507e-05,2]
[419123531,1774904836828,-282.99073533,9.593e-05,2]
[419123532,1774904836850,-229.15,9.751e-05,2]
[419123533,1774904836871,-227.7,9.751e-05,2]
[419123534,1774904836894,-227.7,9.751e-05,2]
[419123535,1774904836914,-500.0,9.838e-05,2]
[419123536,1774904836934,-245.47812698,9.838e-05,2]
[419123537,1774904836954,-314.81977592,9.838e-05,2]
[419123538,1774904836975,-1544.0,9.848e-05,2]
[419123539,1774904836995,-500.0,9.971e-05,2]
[419123540,1774904837015,-1003.89322888,9.999e-05,2]
[419123541,1774904837036,-150.0,9.999e-05,2]
[419123542,1774904837058,-1386.78395259,0.0001,2]
[419123543,1774904837078,-151.0,0.0001,2]
[419123544,1774904837099,-151.0,0.0001,2]
[419123545,1774904837120,-151.0,0.0001,2]
[419123546,1774904837140,-151.0,0.0001,2]
[419123547,1774904837161,-151.0,0.0001,2]
[419123548,1774904837183,-151.0,0.0001,2]
[419123549,1774904837204,-151.0,0.0001,2]
[419123550,1774904837225,-151.0,0.0001,2]
[419123551,1774904837246,-151.0,0.0001,2]
[419123552,1774904837267,-151.0,0.0001,2]
[419123553,1774904837288,-151.0,0.0001,2]
[419123554,1774904837310,-151.0,0.0001,2]
[419123555,1774904837334,-151.0,0.0001,2]
[419123556,1774904837356,-151.0,0.0001,2]
[419123557,1774904837381,-164.15060716,0.0001,2]
[419123558,1774904837404,-151.0,0.0001,2]
[419123559,1774904837426,-151.0,0.0001,2]
[419123560,1774904837447,-151.0,0.0001,2]
[419123561,1774904837468,-151.0,0.0001,2]
[419123562,1774904837492,-151.0,0.0001,2]
[419123563,1774904837514,-151.0,0.0001,2]
[419123564,1774904837536,-151.0,0.0001,2]
[419123565,1774904837558,-151.0,0.0001,2]
[419123566,1774904837580,-151.0,0.0001,2]
[419123567,1774904837602,-151.0,0.0001,2]
[419123568,1774904837624,-151.0,0.0001,2]
[419123569,1774904837644,-500.0,0.0001,2]
[419123570,1774904837665,-485.30866739,0.0001,2]
[419123571,1774904837685,-485.30866739,0.0001,2]
[419123572,1774904837705,-485.30866739,0.0001,2]
[419123573,1774904837727,-298.67704313,0.0001,2]
[419123574,1774904837749,-229.15,0.0001003,2]
[419123575,1774904837769,-1398.92859343,0.00010219,2]
[419123577,1774904947756,500.0,8.537e-05,2]
[419123611,1774905033375,-150.0,9.999e-05,2]
[419123613,1774905033384,-300.0,9.999e-05,2]
[419123615,1774905033393,-1200.0,9.999e-05,2]
[419123616,1774905033403,-300.0,9.999e-05,2]
[419123618,1774905033412,-260.0,9.999e-05,2]
[419123620,1774905033421,-250.0,9.999e-05,2]
[419123622,1774905033431,-5000.0,0.0001,2]
[419123624,1774905033440,-200.0,0.0001,2]
[419123626,1774905033449,-151.0,0.0001,2]
[419123628,1774905033458,-500.0,0.0001,2]
[419123630,1774905033467,-151.0,0.0001,2]
[419123632,1774905033476,-151.0,0.0001,2]
[419123634,1774905033485,-500.0,0.0001,2]
[419123636,1774905033495,-151.0,0.0001,2]
[419123638,1774905033504,-151.0,0.0001,2]
[419123640,1774905033513,-500.0,0.0001,2]
[419123642,1774905033522,-151.0,0.0001,2]
[419123644,1774905033531,-151.0,0.0001,2]
[419123646,1774905033540,-500.0,0.0001,2]
[419123648,1774905033550,-151.0,0.0001,2]
[419123650,1774905033559,-151.0,0.0001,2]
[419123652,1774905033569,-500.0,0.0001,2]
[419123654,1774905033578,-151.0,0.0001,2]
[419123656,1774905033588,-500.0,0.0001,2]
[419123657,1774905033597,-151.0,0.0001,2]
[419123659,1774905033606,-151.0,0.0001,2]
[419123661,1774905033615,-151.0,0.0001,2]
[419123663,1774905033624,-151.0,0.0001,2]
[419123664,1774905033634,-151.0,0.0001,2]
[419123665,1774905033644,-151.0,0.0001,2]
[419123666,1774905033652,-1386.78395259,0.0001,2]
[419123667,1774905033661,-282.99073533,0.0001,2]
[419123668,1774905033670,-250.0,0.00010059,2]
[419123669,1774905033679,-500.0,0.00010076,2]
[419123670,1774905033688,-384.2792077,0.000101,2]
[419123671,1774905033697,-1509.65140657,0.00010219,2]
[419123672,1774905033705,-2750.6,0.0001026,2]
[419123673,1774905033714,-2750.6,0.0001026,2]
[419123674,1774905034116,-2750.6,0.0001026,2]
[419123675,1774905034127,-229.15,0.00010309,2]
[419123676,1774905034136,-1000.0,0.00010386,2]
[419123677,1774905034147,-150.0,0.000105,2]
[419123678,1774905034157,-500.29196162,0.00010519,2]
[419123679,1774905034167,-1438.09495884,0.00010548,2]
[419123680,1774905034176,-229.15,0.00010587,2]
[419123681,1774905034187,-1188.0,0.00010629,2]
[419123682,1774905034198,-579.0,0.00010653,2]
[419123683,1774905034207,-2857.67,0.00010674,2]
[419123684,1774905034216,-500.0,0.00010783,2]
[419123685,1774905034228,-334.56830939,0.00010783,2]
[419123686,1774905034238,-500.0,0.00010783,2]
[419123687,1774905034247,-164.30964839,0.00010783,2]
[419123688,1774905034258,-501.73742858,0.00010783,2]